bitfinex/quotes_ETHUSD_20250518
["timestamp","ask_amount","ask_price","bid_price","bid_amount"]
[1747565683442,25.42987737,2502.4,2502.3,40.24300226]
[1747565683658,25.42987737,2502.4,2502.3,47.12387026]
[1747565684119,25.42987737,2502.4,2502.3,61.34716926]
[1747565685043,25.42987737,2502.4,2502.3,72.84616926]
[1747565685646,25.42987737,2502.4,2502.3,70.69026626]
[1747565685846,25.42987737,2502.4,2502.3,76.95634226]
[1747565690755,23.99274048,2502.4,2502.3,76.95634226]
[1747565692750,21.59763614,2502.4,2502.3,76.95634226]
[1747565695765,15.53763614,2502.4,2502.3,76.95634226]
[1747565701260,14.100566,2502.4,2502.3,76.95634226]
[1747565701766,14.100566,2502.4,2502.3,69.54234226]
[1747565702070,14.100566,2502.4,2502.3,76.95334226]
[1747565703475,14.100566,2502.4,2502.3,48.19080626]
[1747565703695,14.100566,2502.4,2502.3,61.85266126]
[1747565706396,14.100566,2502.4,2502.3,62.61386126]
[1747565706895,14.100566,2502.4,2502.3,60.57476626]
[1747565707272,14.100566,2502.4,2502.3,67.24902026]
[1747565707889,14.100566,2502.4,2502.3,52.42302026]
[1747565708099,14.100566,2502.4,2502.3,64.09772726]
[1747565711010,14.100566,2502.4,2502.3,64.09672726]
[1747565712204,12.66333702,2502.4,2502.3,64.09672726]
[1747565712576,12.66333702,2502.4,2502.3,60.57176626]
[1747565712775,12.66333702,2502.4,2502.3,59.81056626]
[1747565713604,12.66333702,2502.4,2502.3,44.98756626]
[1747565713811,12.66333702,2502.4,2502.3,54.64390532]
[1747565716786,12.66333702,2502.4,2502.3,60.70390532]
[1747565717011,12.66333702,2502.4,2502.3,59.42832338]
[1747565726223,12.56578392,2502.4,2502.3,59.42832338]
[1747565727619,12.26193003,2502.4,2502.3,59.42832338]
[1747565727817,11.35193003,2502.4,2502.3,65.14891138]
[1747565728419,11.35193003,2502.4,2502.3,59.42832338]
[1747565728725,10.92593003,2502.4,2502.3,52.01732338]
[1747565728919,11.71393003,2502.4,2502.3,60.70290532]
[1747565731328,11.71393003,2502.4,2502.3,59.42732338]
[1747565731527,10.92593003,2502.4,2502.3,59.42732338]
[1747565736193,10.92593003,2502.4,2502.3,59.42532338]
[1747565739933,10.92593003,2502.4,2502.3,68.32469038]
[1747565740101,10.92593003,2502.4,2502.3,61.94243638]
[1747565740732,10.48193003,2502.4,2502.3,61.94243638]
[1747565741232,10.48193003,2502.4,2502.3,63.21801832]
[1747565742233,10.08653003,2502.4,2502.3,64.54175032]
[1747565742913,10.08653003,2502.4,2502.3,63.61475032]
[1747565744325,10.08653003,2502.4,2502.3,60.70090532]
[1747565744728,10.08653003,2502.4,2502.3,53.29090532]
[1747565744927,10.08653003,2502.4,2502.3,60.69890532]
[1747565745624,10.87393003,2502.4,2502.3,38.79090532]
[1747565745830,10.87393003,2502.4,2502.3,31.38090532]
[1747565746037,10.87393003,2502.4,2502.3,46.19890532]
[1747565746531,10.87393003,2502.4,2502.3,32.73090532]
[1747565746718,10.87393003,2502.4,2502.3,40.13890532]
[1747565747370,10.87393003,2502.4,2502.3,38.86332338]
[1747565749013,10.87393003,2502.4,2502.3,38.31332338]
[1747565758158,10.87393003,2502.4,2502.3,38.31232338]
[1747565758856,10.87393003,2502.4,2502.3,44.37232338]
[1747565762871,10.08653003,2502.4,2502.3,44.37232338]
[1747565767408,10.08653003,2502.4,2502.3,58.87232338]
[1747565768184,8.7007796,2502.4,2502.3,70.81519638]
[1747565768667,7.1637796,2502.4,2502.3,70.81519638]
[1747565768871,6.7520796,2502.4,2502.3,70.81519638]
[1747565769187,5.74747962,2502.4,2502.3,70.81519638]
[1747565769340,5.31677963,2502.4,2502.3,70.81519638]
[1747565769542,4.16997963,2502.4,2502.3,70.81519638]
[1747565769877,4.16997963,2502.4,2502.3,72.09077832]
[1747565773772,4.16997963,2502.4,2502.3,82.21077832]
[1747565774567,2.73287877,2502.4,2502.3,82.59346711]
[1747565774958,2.73287877,2502.4,2502.3,81.31788517]
[1747565775309,7.406,2504.4,2502.3,81.31788517]
[1747565775310,0.8297,2503.9,2503.8,3.99392922]
[1747565775461,0.8297,2503.9,2503.8,18.80392922]
[1747565775874,0.8297,2503.9,2503.8,3.99392922]
[1747565776194,0.8297,2503.9,2503.8,18.80392922]
[1747565777504,0.8032,2504.9,2504.0,8.0]
[1747565777801,0.8032,2504.8,2504.1,14.815]
[1747565778002,0.8032,2504.7,2504.3,3.99304427]
[1747565778989,0.8032,2504.7,2504.2,4.28787901]
[1747565779402,0.8032,2504.7,2504.3,3.9929995]
[1747565780693,0.8032,2504.7,2504.4,3.99296896]
[1747565781106,1.28274591,2504.7,2504.4,3.99296896]
[1747565781406,0.8032,2504.6,2504.4,3.99296896]
[1747565782700,0.8032,2504.6,2504.5,11.41081293]
[1747565783891,0.8032,2504.6,2504.5,14.821]
[1747565786097,0.8032,2504.6,2504.4,7.416]
[1747565786320,1.26646986,2504.5,2504.4,7.416]
[1747565787097,0.7869,2504.5,2504.4,7.416]
[1747565787426,0.7869,2504.5,2504.4,7.414]
[1747565787824,0.7869,2504.5,2504.4,11.40697236]
[1747565795337,0.7869,2504.5,2504.4,3.99297236]
[1747565795541,0.7869,2504.5,2504.4,11.40097236]
[1747565800011,0.7869,2504.5,2504.4,11.7823325]
[1747565801860,0.7869,2504.5,2504.4,4.3743325]
[1747565802029,0.7869,2504.5,2504.4,11.7753325]
[1747565808560,0.7869,2504.5,2504.4,0.38136014]
[1747565808795,4.77971293,2504.5,2504.4,0.38136014]
[1747565808952,4.77971293,2504.5,2504.1,0.63693276]
[1747565808953,3.99316068,2504.3,2504.1,0.63693276]
[1747565809272,4.76149127,2504.2,2504.1,0.63693276]
[1747565811780,4.80325169,2504.2,2504.1,0.63693276]
[1747565812514,3.99379947,2503.9,2503.4,18.79949453]
[1747565812642,0.87326042,2503.8,2503.4,18.79949453]
[1747565813570,0.8315,2503.8,2503.5,3.99438891]
[1747565814685,0.8315,2503.8,2503.6,3.99416238]
[1747565816094,0.8315,2503.8,2503.5,3.99437345]
[1747565817682,0.8315,2503.8,2503.4,18.79955854]
[1747565817884,4.82543193,2503.8,2503.4,18.79955854]
[1747565818072,5.71151456,2503.8,2503.4,18.79955854]
[1747565818380,1.71758263,2503.8,2503.4,18.79955854]
[1747565818686,1.71758263,2503.8,2503.5,3.99438608]
[1747565819074,1.71758263,2503.8,2503.4,18.79954858]
[1747565819888,1.71758263,2503.8,2503.4,11.39854858]
[1747565820387,1.71758263,2503.8,2503.5,3.99440011]
[1747565820689,0.8315,2503.8,2503.5,3.99440011]
[1747565823855,0.7517,2503.7,2503.3,3.99465513]
[1747565824000,0.7517,2503.5,2503.2,7.406]
[1747565824182,0.7517,2503.5,2503.2,14.809]
[1747565824378,4.74613176,2503.5,2503.2,14.809]
[1747565824881,0.7517,2503.5,2503.2,14.809]
[1747565825122,1.62990509,2503.5,2503.2,14.809]
[1747565826041,5.62436009,2503.5,2502.9,15.48930074]
[1747565826237,0.7517,2503.4,2503.0,18.80411026]
[1747565827022,4.74632272,2503.4,2502.9,18.9]
[1747565827320,1.31246757,2503.3,2502.9,30.29824943]
[1747565828921,1.31246757,2503.3,2503.0,3.99520118]
[1747565830136,1.31246757,2503.3,2502.9,26.303]
[1747565830424,0.75001479,2503.3,2503.1,3.99503992]
[1747565830823,0.75001479,2503.3,2502.9,30.29834417]
[1747565831023,0.75001479,2503.3,2503.0,3.9951161]
[1747565831227,0.75001479,2503.3,2503.1,3.99493405]
[1747565832235,0.75001479,2503.3,2503.0,3.99511769]
[1747565833515,0.75001479,2503.3,2503.0,3.99517685]
[1747565833703,0.75001479,2503.3,2503.1,3.99496944]
[1747565834615,0.75001479,2503.3,2503.1,3.99498884]
[1747565835149,0.75001479,2503.3,2503.0,3.99511386]
[1747565836423,0.75001479,2503.3,2503.1,3.99496407]
[1747565838638,0.75001479,2503.3,2502.9,30.29829987]
[1747565838639,0.75001479,2503.3,2503.0,3.99511032]
[1747565839438,0.75001479,2503.3,2503.0,11.39911032]
[1747565841750,4.74478252,2503.3,2502.9,22.89528285]
[1747565842055,5.21924279,2503.3,2503.0,7.404]
[1747565842848,0.78,2503.2,2502.9,26.304]
[1747565843043,0.78,2503.2,2502.9,30.29934723]
[1747565843350,0.78,2503.2,2503.0,3.99519693]
[1747565843848,0.78,2503.2,2503.1,3.99504614]
[1747565844056,0.78,2503.2,2503.0,3.99517535]
[1747565845251,0.78,2503.2,2503.1,3.99504614]
[1747565845545,0.78,2503.2,2503.0,3.99514334]
[1747565850855,0.7627,2503.4,2503.2,3.99487206]
[1747565851016,0.7627,2503.8,2503.1,0.7697]
[1747565851351,0.7627,2504.0,2503.7,3.99405293]
[1747565851553,1.39804557,2504.0,2503.7,7.404]
[1747565851756,0.7627,2504.2,2503.8,3.9938544]
[1747565852153,4.75602182,2504.2,2503.7,11.39799837]
[1747565854193,4.75602182,2504.2,2503.7,7.404]
[1747565854194,3.99351229,2504.1,2503.7,7.404]
[1747565854495,3.99351229,2504.1,2503.6,11.39918934]
[1747565854496,0.7627,2504.2,2503.4,3.99452098]
[1747565854781,0.7545,2504.0,2503.5,11.39838327]
[1747565855087,1.62864163,2504.0,2503.5,11.39838327]
[1747565855438,1.62864163,2504.0,2503.6,3.99423245]
[1747565855639,1.62864163,2504.0,2503.7,3.9940826]
[1747565855840,0.7545,2504.0,2503.6,3.99416002]
[1747565856553,0.7545,2504.0,2503.7,3.99405191]
[1747565857791,0.7545,2504.0,2503.6,3.99416637]
[1747565859485,0.7545,2504.0,2503.7,3.9940558]
[1747565859984,0.7545,2504.0,2503.8,3.99392124]
[1747565860202,0.7545,2504.0,2503.8,3.99385821]
[1747565862151,0.7545,2504.0,2503.7,3.99399148]
[1747565862751,0.7545,2504.0,2503.8,3.99391406]
[1747565863484,0.7545,2504.0,2503.7,3.99399524]
[1747565865205,0.7545,2504.0,2503.8,3.99392268]
[1747565865688,0.7545,2504.0,2503.6,3.99419932]
[1747565865689,0.7545,2504.0,2503.7,3.99401462]
[1747565867978,0.7545,2504.0,2503.6,3.99417204]
[1747565868178,0.7545,2504.0,2503.7,7.402]
[1747565868901,0.7545,2504.0,2503.7,11.39607719]
[1747565870366,8.8213,2504.2,2503.8,3.99391339]
[1747565871179,12.81459791,2504.2,2503.8,3.99391339]
[1747565871803,0.8213,2504.2,2504.0,3.99360007]
[1747565871993,8.8213,2504.4,2504.0,3.99360007]
[1747565872301,4.81427665,2504.4,2503.8,3.99392922]
[1747565872513,12.81427665,2504.4,2503.9,3.99370448]
[1747565872747,14.49498666,2504.4,2503.9,3.99370448]
[1747565873410,2.50201001,2504.4,2504.0,3.99353261]
[1747565873607,6.49500845,2504.4,2503.9,3.99368149]
[1747565876910,2.50201001,2504.4,2504.0,3.99353548]
[1747565877212,4.81428483,2504.4,2504.0,3.99353548]
[1747565877720,0.8213,2504.4,2504.1,3.9933362]
[1747565880326,8.7756,2504.6,2504.2,3.99329127]
[1747565880544,0.7756,2504.6,2504.2,3.99329127]
[1747565880828,4.76826747,2504.6,2504.2,3.99329127]
[1747565881206,0.7756,2504.6,2504.2,3.99329127]
[1747565881593,0.7756,2504.6,2504.1,3.99344658]
[1747565881816,0.7756,2504.6,2504.2,3.9931736]
[1747565883217,0.7756,2504.6,2504.5,3.99281293]
[1747565883415,0.7509,2504.9,2504.5,3.99274741]
[1747565883620,0.7509,2504.9,2504.2,7.401]
[1747565883819,0.7509,2504.9,2504.4,3.9929637]
[1747565884199,4.74308446,2504.9,2504.4,3.99289309]
[1747565884393,4.74308446,2504.9,2504.5,3.99280281]
[1747565885812,4.74308446,2504.9,2504.4,3.99290775]
[1747565886634,4.74308446,2504.9,2504.5,3.99281218]
[1747565887333,4.74308446,2504.9,2504.4,3.99290941]
[1747565888636,4.74308446,2504.9,2504.4,3.99283491]
[1747565888936,4.74308446,2504.9,2504.4,3.99281312]
[1747565889338,4.74308446,2504.9,2504.5,3.99280411]
[1747565890739,4.74308446,2504.9,2504.4,3.99290854]
[1747565891033,4.74308446,2504.9,2504.5,3.99280901]
[1747565891799,3.9924164,2504.8,2504.4,3.99292934]
[1747565891999,0.7921,2504.6,2504.1,4.29796953]
[1747565892195,0.7921,2504.6,2504.3,11.39211089]
[1747565892395,0.7921,2504.6,2504.3,11.39213105]
[1747565892938,0.7921,2504.6,2504.2,3.99319755]
[1747565893105,5.26327851,2504.6,2504.2,18.79127355]
[1747565893433,0.7921,2504.6,2504.2,18.79127355]
[1747565894235,0.7921,2504.6,2504.3,3.99312314]
[1747565899334,0.7921,2504.6,2504.4,3.99294702]
[1747565899541,0.7921,2504.6,2504.3,3.99306419]
[1747565900833,0.7921,2504.6,2504.3,18.79006419]
[1747565902541,0.7921,2504.6,2504.4,3.99289032]
[1747565902741,0.7921,2504.6,2504.3,18.79003644]
[1747565905050,0.7921,2504.6,2504.3,14.797]
[1747565905238,0.7921,2504.6,2504.4,3.99296771]
[1747565905603,0.8012,2504.8,2504.5,3.99281293]
[1747565905803,2.24190188,2504.8,2504.5,3.99281293]
[1747565906032,0.8012,2504.8,2504.4,3.9928324]
[1747565906431,0.8012,2504.8,2504.5,3.99277834]
[1747565908542,0.8012,2504.8,2504.4,3.99289711]
[1747565908749,0.8012,2504.8,2504.5,3.99274552]
[1747565910653,0.8012,2504.8,2504.4,3.99285381]
[1747565910949,0.8012,2504.8,2504.5,3.99277697]
[1747565912765,0.8012,2504.8,2504.4,3.99288436]
[1747565915132,0.8012,2504.8,2504.6,3.99257837]
[1747565916451,0.8012,2504.8,2504.5,3.99275285]
[1747565916619,0.8012,2504.8,2504.5,3.9926678]
[1747565922064,0.8012,2504.8,2504.6,3.99261291]
[1747565923335,0.8012,2504.8,2504.5,3.9927294]
[1747565926368,0.8012,2504.8,2504.4,11.39187745]
[1747565927064,0.8012,2504.8,2504.5,3.99280785]
[1747565927563,0.8012,2504.8,2504.4,7.399]
[1747565927564,0.8303,2504.6,2504.4,14.791]
[1747565927783,0.8303,2504.6,2504.4,18.78395154]
[1747565931592,0.8303,2504.6,2504.5,3.99281293]
[1747565931760,0.8303,2504.8,2504.5,3.99281293]
[1747565932156,0.8303,2504.8,2504.6,3.99264231]
[1747565932602,0.8303,2504.8,2504.5,3.99273924]
[1747565933654,0.8303,2504.8,2504.5,3.99105402]
[1747565933868,0.8303,2504.8,2504.4,18.78394179]
[1747565934080,5.7040963,2504.8,2504.4,18.78394179]
[1747565934503,5.7040963,2504.8,2504.4,3.99294179]
[1747565934673,5.7040963,2504.8,2504.4,18.78394179]
[1747565934874,1.71175454,2504.8,2504.4,18.78394179]
[1747565935489,3.99252658,2504.7,2504.1,0.47706327]
[1747565935712,0.04176042,2504.6,2504.3,7.396]
[1747565935993,4.56713073,2504.7,2504.3,7.396]
[1747565936174,4.56713073,2504.7,2504.3,11.38911618]
[1747565937221,0.57460415,2504.7,2504.3,11.38911618]
[1747565938611,0.57460415,2504.7,2504.4,3.99297076]
[1747565939117,0.57460415,2504.7,2504.3,11.38903995]
[1747565939422,0.57460415,2504.7,2504.4,3.99296994]
[1747565941016,0.57460415,2504.7,2504.3,11.38903513]
[1747565941210,0.8303,2504.8,2504.4,3.99288723]
[1747565941579,4.82264246,2504.8,2504.4,3.99288723]
[1747565942695,4.82264246,2504.8,2504.3,11.38903071]
[1747565946716,0.8303,2504.8,2504.3,11.38903071]
[1747565946909,4.03426887,2504.7,2504.4,7.393]
[1747565947113,4.91994953,2504.7,2504.4,7.393]
[1747565947893,4.87818911,2504.7,2504.4,7.393]
[1747565948101,4.87818911,2504.7,2504.3,11.38903071]
[1747565948426,4.91994953,2504.7,2504.4,7.393]
[1747565948721,4.87818911,2504.7,2504.4,7.393]
[1747565948920,0.88568066,2504.7,2504.4,7.393]
[1747565951619,4.87821732,2504.7,2504.4,7.393]
[1747565951823,0.7965,2504.5,2504.3,7.393]
[1747565952121,0.7965,2504.5,2504.3,14.786]
[1747565955624,0.7965,2504.5,2504.2,3.99328854]
[1747565955821,0.7965,2504.5,2504.3,7.393]
[1747565963019,0.7603,2504.8,2504.4,3.99297236]
[1747565963207,1.6347701,2504.8,2504.4,3.99297236]
[1747565963908,5.62710566,2504.8,2504.4,3.99297236]
[1747565964533,1.6347701,2504.8,2504.4,3.99297236]
[1747565965233,1.6347701,2504.8,2504.3,7.393]
[1747565965410,0.7603,2504.8,2504.4,3.99285805]
[1747565966633,0.7603,2504.8,2504.5,3.99280727]
[1747565967937,0.7603,2504.8,2504.6,3.99265165]
[1747565968241,0.7603,2504.8,2504.5,3.99271982]
[1747565968737,0.7603,2504.8,2504.6,3.99264009]
[1747565968939,0.7603,2504.8,2504.5,3.99272325]
[1747565970938,4.81956323,2505.0,2504.5,3.99269951]
[1747565971142,0.48195632,2504.9,2504.5,3.99269951]
[1747565971446,0.48195632,2504.9,2504.4,3.99295361]
[1747565972348,0.48195632,2504.9,2504.5,3.99271641]
[1747565973241,4.47413542,2504.9,2504.5,3.99271641]
[1747565973745,0.48195632,2504.9,2504.5,3.99271641]
[1747565973932,0.45278293,2504.8,2504.5,3.99271641]
[1747565977547,0.48195632,2504.9,2504.5,3.99272554]
[1747565977763,4.81958879,2505.0,2504.5,3.99272554]
[1747565980059,4.81958879,2505.0,2504.4,11.38388999]
[1747565980252,4.81958879,2505.0,2504.4,7.39]
[1747565980253,3.99227552,2504.9,2504.4,7.39]
[1747565980943,0.8227,2504.8,2504.4,11.38290659]
[1747565981307,4.81504306,2504.8,2504.4,7.39]
[1747565981544,4.81504306,2504.8,2504.4,11.38297173]
[1747565982854,4.81504306,2504.8,2504.4,3.99297173]
[1747565984260,0.8227,2504.8,2504.4,3.99297173]
[1747565984818,0.8227,2504.8,2504.5,3.99273199]
[1747565985018,0.8227,2504.8,2504.4,3.99288172]
[1747565990659,0.8227,2504.8,2504.5,3.9927735]
[1747565990951,0.8227,2504.8,2504.3,18.77306083]
[1747565991354,0.8227,2504.8,2504.3,3.99306083]
[1747565991560,0.8227,2504.8,2504.6,3.99254408]
[1747565991864,4.74433704,2505.0,2504.6,3.99254408]
[1747565992353,0.7523,2505.0,2504.6,3.99254408]
[1747565992554,3.99174239,2505.2,2504.5,0.8167]
[1747565992555,0.7523,2505.2,2504.5,0.8167]
[1747565992754,4.74409231,2505.2,2504.7,3.99239902]
[1747565993053,5.89288215,2505.2,2504.7,3.99239902]
[1747565993446,3.99188258,2505.1,2504.7,3.99239902]
[1747565993647,3.99188258,2505.1,2504.6,3.99256474]
[1747565994962,3.99222181,2504.9,2504.4,0.47706327]
[1747565995132,0.7523,2504.8,2504.5,14.778]
[1747565995458,0.7523,2504.8,2504.4,4.46994723]
[1747565995630,0.7523,2504.8,2504.5,14.778]
[1747565995830,0.7523,2504.8,2504.5,7.388]
[1747565997467,0.7523,2504.8,2504.5,11.38081072]
[1747565999795,0.7523,2504.8,2504.4,3.99289434]
[1747565999949,0.7523,2504.8,2504.4,18.76889434]
[1747566000560,0.7523,2504.8,2504.4,7.389]
[1747566000561,4.74472955,2504.8,2504.4,7.389]
[1747566000763,0.04176042,2504.7,2504.4,14.776]
[1747566000971,0.7871,2504.5,2504.4,14.776]
[1747566001170,0.7871,2504.5,2504.3,0.47706327]
[1747566001373,0.7871,2504.5,2504.4,14.776]
[1747566001874,0.7871,2504.5,2504.4,7.389]
[1747566002040,3.99256923,2504.7,2504.4,7.389]
[1747566002041,0.7871,2504.7,2504.4,18.76896351]
[1747566005095,0.7871,2504.7,2504.4,14.776]
[1747566011196,1.3341,2505.1,2504.4,14.776]
[1747566011903,0.7841,2505.0,2504.4,14.776]
[1747566015815,0.7841,2505.0,2504.4,14.775]
[1747566024915,0.55,2505.1,2504.5,0.8312]
[1747566035435,0.786,2505.0,2504.4,14.769]
[1747566035927,0.786,2505.0,2504.2,0.47706327]
[1747566035928,0.786,2504.8,2504.2,0.47706327]
[1747566036112,0.04176042,2504.7,2504.2,0.47706327]
[1747566037499,0.59176042,2504.7,2504.2,0.47706327]
[1747566037699,0.55,2504.5,2504.2,0.47706327]
[1747566038199,0.55,2504.8,2504.2,0.47706327]
[1747566038412,0.55,2504.8,2503.7,1.30246327]
[1747566038413,2.3543,2504.7,2503.7,1.30246327]
[1747566040509,2.3543,2504.7,2503.7,0.8254]
[1747566046948,0.55,2504.5,2503.7,0.8254]
[1747566047131,0.761,2504.3,2503.7,0.8254]
[1747566047333,0.04176042,2504.2,2503.5,7.386]
[1747566047539,0.88027604,2504.2,2503.5,8.2141]
[1747566050361,0.04176042,2504.1,2503.5,0.8281]
[1747566050560,1.311,2504.1,2503.3,8.2111]
[1747566050872,0.761,2504.0,2503.3,8.2111]
[1747566051038,0.55,2503.9,2503.1,7.86006327]
[1747566051366,0.761,2503.8,2503.1,15.5931]
[1747566055257,0.761,2503.8,2503.1,15.89480778]
[1747566058576,0.761,2503.8,2503.1,8.51280778]
[1747566063650,0.8293,2504.3,2503.3,0.7833]
[1747566063845,0.8293,2504.3,2503.4,0.7833]
[1747566064056,0.8293,2504.3,2503.5,8.1653]
[1747566064369,0.8293,2504.3,2503.6,7.385]
[1747566064679,1.07197142,2504.3,2503.6,7.385]
[1747566064881,1.11373184,2504.3,2503.6,7.385]
[1747566066980,0.55,2504.1,2503.3,0.7833]
[1747566067181,0.8293,2504.0,2503.4,14.767]
[1747566067943,1.3793,2504.2,2503.4,0.7833]
[1747566068144,0.8293,2504.2,2503.5,0.7833]
[1747566069681,0.04176042,2504.1,2503.5,0.7833]
[1747566069983,0.24267142,2504.3,2503.3,0.47706327]
[1747566069984,0.8293,2504.0,2503.3,15.24206327]
[1747566070882,0.8293,2504.0,2503.3,0.47706327]
[1747566071074,0.55,2503.9,2503.3,0.47706327]
[1747566071280,0.8293,2503.8,2503.3,0.47706327]
[1747566071881,0.8293,2503.8,2503.1,14.765]
[1747566072079,0.8293,2504.1,2503.2,8.7833]
[1747566072466,2.46799714,2504.1,2503.2,8.7833]
[1747566072857,0.8293,2504.1,2503.3,0.7833]
[1747566073052,0.8293,2505.4,2503.3,0.7833]
[1747566073354,0.8293,2504.8,2503.5,0.7833]
[1747566073558,0.8293,2504.8,2503.7,8.0]
[1747566073760,0.8293,2504.8,2503.8,0.7833]
[1747566074169,0.8293,2505.0,2504.0,0.7833]
[1747566074471,0.8293,2505.0,2504.2,0.7833]
[1747566076493,0.8293,2505.4,2504.3,0.7833]
[1747566076657,0.82203,2505.3,2504.3,0.7833]
[1747566084807,0.8293,2505.4,2504.3,0.7833]
[1747566087307,0.55,2506.0,2504.5,0.7839]
[1747566087494,8.7588,2505.6,2504.7,0.7839]
[1747566088288,8.7588,2505.6,2504.7,1.07785511]
[1747566089505,8.7588,2505.6,2504.8,0.7517]
[1747566089712,0.29991022,2506.1,2504.8,0.7517]
[1747566089713,0.8073,2506.1,2504.8,0.7517]
[1747566090878,1.5974142,2506.2,2504.8,0.7517]
[1747566091309,0.55,2506.1,2504.8,0.7517]
[1747566092019,0.8073,2506.3,2504.8,0.7517]
[1747566092584,0.55,2506.2,2504.8,0.7517]
[1747566092810,0.55,2506.0,2505.0,8.7886]
[1747566093013,0.55,2506.0,2505.0,0.7886]
[1747566093698,0.55,2506.0,2505.1,14.818]
[1747566093899,0.55,2506.0,2505.0,0.7886]
[1747566094111,0.55,2506.0,2505.2,14.817]
[1747566094313,1.48712,2506.0,2505.2,14.817]
[1747566094832,1.48712,2506.0,2505.2,14.816]
[1747566095529,1.48712,2506.0,2505.0,0.7886]
[1747566095735,0.86296042,2505.9,2505.1,14.814]
[1747566095922,0.86296042,2505.9,2505.0,8.1756]
[1747566095923,0.55,2505.8,2505.0,8.1756]
[1747566096120,0.98305646,2505.7,2505.0,8.1756]
[1747566096830,0.55,2505.6,2505.0,0.7886]
[1747566097146,0.8212,2505.5,2504.8,15.6046]
[1747566097629,0.8212,2505.5,2504.8,15.6036]
[1747566098397,0.59176042,2505.4,2504.8,0.7886]
[1747566098596,0.59176042,2505.4,2504.3,0.7718]
[1747566098836,1.53305646,2505.4,2504.6,14.817]
[1747566099134,1.53305646,2505.4,2504.3,0.7718]
[1747566099135,0.55,2505.2,2504.3,0.7718]
[1747566099326,0.55,2505.2,2504.5,7.387]
[1747566101542,0.55,2505.2,2504.6,0.7718]
[1747566103604,0.7814696,2505.2,2504.6,0.7718]
[1747566106639,0.7814696,2505.2,2504.6,8.1968]
[1747566111218,0.2314696,2505.2,2504.6,8.1968]
[1747566111420,0.8234,2505.3,2504.6,8.1968]
[1747566112255,0.8139,2505.5,2504.6,8.1968]
[1747566112828,0.8139,2505.5,2504.7,0.82901916]
[1747566113924,0.8139,2505.5,2504.7,0.7891]
[1747566114253,0.88139,2505.4,2504.7,0.7891]
[1747566114452,0.8139,2505.5,2504.7,0.7891]
[1747566115435,0.8139,2505.5,2504.8,0.03991922]
[1747566115932,0.8139,2505.5,2504.7,0.7891]
[1747566117660,0.799,2505.3,2504.7,14.853]
[1747566117967,0.7718,2505.1,2504.5,7.90606327]
[1747566118136,0.7718,2505.1,2504.5,15.33006327]
[1747566120969,0.7718,2505.1,2504.5,14.853]
[1747566122166,0.7718,2505.1,2504.5,7.429]
[1747566122376,0.7718,2505.1,2504.5,14.848]
[1747566124867,0.7718,2505.1,2504.5,15.6715]
[1747566125065,8.0,2505.4,2504.5,15.6715]
[1747566125263,0.7718,2505.4,2504.5,15.6715]
[1747566125972,0.7718,2505.4,2504.6,0.47706327]
[1747566126855,0.7718,2505.2,2504.6,15.32706327]
[1747566127185,0.7718,2505.2,2504.6,7.89706327]
[1747566129149,0.7718,2505.2,2504.5,14.852]
[1747566129361,0.81356042,2505.2,2504.5,14.852]
[1747566130211,1.3235,2505.1,2504.2,8.77281869]
[1747566130358,0.55,2505.1,2504.5,14.849]
[1747566130682,0.7735,2505.0,2504.5,14.849]
[1747566132300,0.7735,2505.0,2504.5,7.429]
[1747566132469,0.7735,2505.0,2504.5,14.846]
[1747566133995,0.7735,2505.0,2504.6,0.03992285]
[1747566134292,0.7656,2505.5,2504.6,8.0]
[1747566134463,0.7656,2505.5,2504.7,0.7923]
[1747566136494,0.7656,2506.0,2504.7,0.7923]
[1747566137168,0.55,2505.9,2504.8,14.89]
[1747566137375,0.7656,2505.8,2504.8,14.89]
[1747566137898,0.7656,2505.8,2504.8,15.36706327]
[1747566139372,0.7656,2505.8,2504.9,14.893]
[1747566139571,8.55,2506.3,2505.0,14.893]
[1747566139778,0.8156,2506.0,2504.8,0.47706327]
[1747566140104,0.8156,2505.7,2504.9,14.891]
[1747566140767,0.8156,2505.7,2505.1,0.7884]
[1747566141404,0.8156,2506.0,2505.1,0.7884]
[1747566143913,0.8156,2506.0,2505.2,14.893]
[1747566144210,0.8156,2506.0,2505.3,0.8283]
[1747566145083,0.8156,2506.0,2505.4,14.894]
[1747566145903,0.8156,2506.0,2505.3,0.8283]
[1747566146105,0.8156,2506.0,2505.4,14.89]
[1747566148235,0.8156,2506.0,2505.5,0.7604]
[1747566150395,0.8156,2506.0,2505.5,1.06132499]
[1747566151705,0.8156,2506.0,2505.6,14.879]
[1747566155626,0.7916,2506.6,2505.8,0.823]
[1747566157228,0.83336042,2507.0,2505.8,0.823]
[1747566157426,0.7916,2506.9,2505.9,14.897]
[1747566157741,0.778,2506.7,2505.9,14.897]
[1747566158691,0.778,2506.7,2505.8,0.823]
[1747566158898,0.778,2506.7,2506.0,14.895]
[1747566160436,0.778,2506.7,2506.1,0.03989929]
[1747566160673,0.778,2506.7,2506.0,14.895]
[1747566163415,0.778,2506.7,2506.1,0.8188]
[1747566165265,0.778,2506.7,2506.1,8.8188]
[1747566165451,1.328,2507.1,2506.1,8.8188]
[1747566169162,0.778,2507.0,2506.1,8.8188]
[1747566169853,0.778,2507.0,2506.2,7.469]
[1747566173846,0.778,2507.0,2506.1,8.8188]
[1747566174051,0.778,2507.0,2506.3,7.46]
[1747566175422,0.778,2507.0,2506.4,7.475]
[1747566175952,0.778,2507.0,2506.1,8.0]
[1747566176158,0.778,2507.0,2506.2,14.931]
[1747566179757,0.778,2507.0,2506.1,8.0]
[1747566179955,0.778,2507.0,2506.2,14.924]
[1747566180959,0.778,2507.0,2506.1,8.0]
[1747566181253,0.778,2507.0,2506.3,7.475]
[1747566182845,0.778,2507.0,2506.1,8.0]
[1747566183027,0.778,2507.0,2506.2,14.917]
[1747566186648,0.778,2507.0,2506.3,0.03989199]
[1747566186941,0.778,2507.0,2506.2,14.917]
[1747566187141,0.778,2507.0,2506.3,14.91]
[1747566187788,0.778,2507.0,2506.4,14.909]